bitfinex/quotes_BTCUSD_20251114
["timestamp","ask_amount","ask_price","bid_price","bid_amount"]
[1763099452573,0.131115,97615.0,97599.0,0.1006426]
[1763099452777,0.2049012,97609.0,97599.0,0.3055609]
[1763099453122,0.20490354,97607.0,97601.0,0.20491498]
[1763099453302,0.20491256,97603.0,97599.0,0.1006426]
[1763099453855,0.20490354,97607.0,97600.0,0.20491803]
[1763099454049,0.20489886,97610.0,97602.0,0.2049131]
[1763099454258,0.20490333,97607.0,97599.0,0.1006426]
[1763099454491,0.20491601,97601.0,97599.0,0.1006426]
[1763099454693,0.06216,97614.0,97599.0,0.1006426]
[1763099454905,0.20488444,97616.0,97599.0,0.1006426]
[1763099455141,0.2049139,97602.0,97599.0,0.1006426]
[1763099455426,0.0724038,97620.0,97605.0,0.204907]
[1763099455606,0.20489162,97613.0,97605.0,0.204907]
[1763099455808,0.0724038,97620.0,97599.0,0.1006426]
[1763099455988,0.20488444,97616.0,97607.0,0.20490132]
[1763099456402,0.20488444,97616.0,97609.0,0.20489873]
[1763099456605,0.20488868,97614.0,97607.0,0.20490132]
[1763099456812,0.2356255,97621.0,97599.0,0.1006426]
[1763099456813,0.03075,97621.0,97613.0,0.2048891]
[1763099457027,0.03075,97621.0,97614.0,0.1006426]
[1763099457192,0.20485972,97628.0,97618.0,0.20487837]
[1763099457395,0.01024275,97630.0,97616.0,0.20488444]
[1763099457602,0.51024275,97630.0,97623.0,0.20486952]
[1763099457802,0.51024275,97630.0,97621.0,0.20487393]
[1763099458044,0.20485494,97631.0,97621.0,0.20487393]
[1763099458260,0.20485494,97631.0,97614.0,0.1006426]
[1763099458261,0.06216,97630.0,97614.0,0.1006426]
[1763099458463,0.20488654,97615.0,97614.0,0.1006426]
[1763099458652,0.20487101,97623.0,97600.0,0.0102459]
[1763099458841,0.20487101,97623.0,97599.0,0.20491925]
[1763099458842,0.20490159,97608.0,97606.0,0.1006426]
[1763099459431,0.20490028,97609.0,97606.0,0.1006426]
[1763099460105,0.54980281,97630.0,97606.0,0.1006426]
[1763099460315,0.20488117,97618.0,97612.0,0.20489282]
[1763099460523,0.20487564,97621.0,97612.0,0.20489282]
[1763099460747,0.01024275,97630.0,97606.0,0.1006426]
[1763099460955,0.20486817,97624.0,97608.0,0.20490123]
[1763099461162,0.341672,97628.0,97606.0,0.30554598]
[1763099461367,0.20488763,97615.0,97609.0,0.20489845]
[1763099461490,0.20488642,97616.0,97609.0,0.20489845]
[1763099461965,0.20488642,97616.0,97606.0,0.1006426]
[1763099461966,0.20489989,97609.0,97606.0,0.1006426]
[1763099462157,0.03098,97610.0,97607.0,0.1006426]
[1763099462297,0.20486636,97625.0,97609.0,0.20489848]
[1763099462503,0.20487185,97622.0,97611.0,0.20489472]
[1763099462706,0.54980281,97630.0,97607.0,0.30554539]
[1763099462707,0.03638808,97648.0,97607.0,0.1006426]
[1763099462967,0.02837206,97647.0,97639.0,0.1006426]
[1763099463102,0.0605,97665.0,97639.0,0.1006426]
[1763099463103,0.00946865,97646.0,97644.0,0.20482502]
[1763099463324,0.03638808,97663.0,97640.0,0.20483408]
[1763099463325,0.02179378,97662.0,97652.0,0.20480761]
[1763099463524,0.02179378,97669.0,97642.0,0.04341874]
[1763099463773,0.20479506,97659.0,97639.0,0.1006426]
[1763099463920,0.03098,97658.0,97654.0,0.1006426]
[1763099464120,0.03143599,97658.0,97655.0,0.20480262]
[1763099464322,0.00045599,97658.0,97655.0,0.20480262]
[1763099465027,0.00045599,97658.0,97656.0,0.1006426]
[1763099465439,0.00045599,97658.0,97656.0,0.30544197]
[1763099465932,0.03098,97657.0,97653.0,0.2048059]
[1763099466135,0.00045599,97658.0,97657.0,0.1006426]
[1763099467201,0.00045599,97658.0,97657.0,0.14406134]
[1763099469226,0.00045599,97658.0,97657.0,0.46706134]
[1763099472077,0.00045599,97658.0,97657.0,0.60061224]
[1763099472296,0.00045599,97658.0,97657.0,0.59834753]
[1763099472498,0.00045599,97658.0,97657.0,0.56899407]
[1763099476007,0.00045599,97658.0,97657.0,0.1006426]
[1763099476458,0.03805599,97658.0,97631.0,0.20485199]
[1763099476651,0.20482779,97643.0,97628.0,0.1006426]
[1763099476854,0.0376,97656.0,97628.0,0.1006426]
[1763099477058,0.20482066,97647.0,97635.0,0.20484328]
[1763099477276,0.20482453,97645.0,97635.0,0.20484328]
[1763099477481,0.20483471,97640.0,97631.0,0.323]
[1763099477602,0.20482401,97645.0,97638.0,0.20483716]
[1763099477818,0.20482889,97643.0,97634.0,0.2048453]
[1763099478224,0.20482889,97643.0,97637.0,0.20484003]
[1763099478429,0.06095599,97658.0,97632.0,0.1006426]
[1763099478430,0.20484405,97636.0,97632.0,0.1006426]
[1763099478651,0.20484573,97635.0,97632.0,0.1006426]
[1763099478854,0.20484351,97636.0,97632.0,0.1006426]
[1763099479474,0.20484094,97637.0,97632.0,0.1006426]
[1763099479704,0.20484487,97635.0,97632.0,0.1006426]
[1763099480476,0.20484539,97636.0,97632.0,0.1006426]
[1763099480677,0.20484877,97633.0,97632.0,0.1006426]
[1763099480914,0.20484074,97637.0,97632.0,0.1006426]
[1763099481121,0.20484573,97635.0,97632.0,0.1006426]
[1763099481808,0.02952,97642.0,97610.0,0.01024485]
[1763099481809,0.20484858,97634.0,97633.0,0.1006426]
[1763099482217,0.20484858,97634.0,97622.0,0.20487063]
[1763099482218,0.20485257,97632.0,97624.0,0.20486671]
[1763099482421,0.02952,97642.0,97631.0,0.1006426]
[1763099482839,0.04057,97632.0,97612.0,0.20489164]
[1763099483026,0.20484843,97634.0,97625.0,0.20486489]
[1763099483228,0.0102417,97640.0,97631.0,0.1006426]
[1763099483428,0.20484424,97636.0,97631.0,0.1006426]
[1763099483631,0.20484712,97634.0,97631.0,0.1006426]
[1763099483826,0.20484877,97633.0,97617.0,0.20488234]
[1763099484052,0.20484643,97635.0,97631.0,0.1006426]
[1763099484280,0.0102417,97640.0,97631.0,0.30549439]
[1763099484511,0.01024065,97650.0,97631.0,0.1006426]
[1763099484623,0.20483319,97641.0,97634.0,0.20484605]
[1763099484829,0.01024065,97650.0,97637.0,0.20483902]
[1763099485031,0.20477775,97667.0,97646.0,0.1006426]
[1763099485392,0.02184305,97666.0,97654.0,0.20480435]
[1763099485603,0.52184305,97666.0,97654.0,0.20480435]
[1763099485805,0.5,97666.0,97654.0,0.20480435]
[1763099486005,0.5,97666.0,97646.0,0.1006426]
[1763099486006,0.20481143,97651.0,97646.0,0.1006426]
[1763099486251,0.20481143,97651.0,97647.0,0.1006426]
[1763099486419,0.20480471,97654.0,97647.0,0.1006426]
[1763099486630,0.20481329,97650.0,97647.0,0.1006426]
[1763099487356,0.04057,97648.0,97629.0,0.20485712]
[1763099487574,0.20484185,97637.0,97629.0,0.20485712]
[1763099487694,0.20484185,97637.0,97620.0,0.05366254]
[1763099487902,0.20483827,97639.0,97628.0,0.2048587]
[1763099488104,0.01024065,97650.0,97632.0,0.1006426]
[1763099488306,0.20484877,97633.0,97632.0,0.1006426]
[1763099488553,0.05691,97649.0,97615.0,0.20488588]
[1763099488554,0.20485837,97629.0,97615.0,0.20488588]
[1763099488754,0.20484531,97635.0,97626.0,0.20486289]
[1763099489005,0.20484531,97635.0,97633.0,0.1006426]
[1763099489518,0.05691,97649.0,97633.0,0.1006426]
[1763099489519,0.20482835,97643.0,97633.0,0.1006426]
[1763099490223,0.20484252,97636.0,97633.0,0.1006426]
[1763099490916,0.20482935,97643.0,97638.0,0.20483683]
[1763099491129,0.20482935,97643.0,97636.0,0.20484141]
[1763099491316,0.20484066,97637.0,97633.0,0.1006426]
[1763099491552,0.20482988,97642.0,97633.0,0.1006426]
[1763099491778,0.20482149,97646.0,97634.0,0.20484667]
[1763099491978,0.20482149,97646.0,97610.0,0.03024485]
[1763099491979,0.01024275,97630.0,97607.0,0.2049032]
[1763099492111,0.2048704,97623.0,97615.0,0.20488654]
[1763099492344,0.20485716,97629.0,97615.0,0.20488654]
[1763099492561,0.20485926,97628.0,97617.0,0.20488157]
[1763099493084,0.20487297,97622.0,97615.0,0.20488567]
[1763099493257,0.20487719,97620.0,97614.0,0.1006426]
[1763099493463,0.00045571,97622.0,97614.0,0.1006426]
[1763099493664,0.00045571,97622.0,97615.0,0.20488603]
[1763099493868,0.20488103,97618.0,97614.0,0.1006426]
[1763099494410,0.20487604,97620.0,97614.0,0.1006426]
[1763099494613,0.20488078,97618.0,97614.0,0.1006426]
[1763099494885,0.20488079,97618.0,97614.0,0.1006426]
[1763099495086,0.00045571,97622.0,97615.0,0.20488654]
[1763099495315,0.20532877,97622.0,97614.0,0.30552981]
[1763099495449,0.20532877,97622.0,97615.0,0.1006426]
[1763099495450,0.00045571,97622.0,97615.0,0.1006426]
[1763099495650,0.20488521,97616.0,97615.0,0.1006426]
[1763099495902,0.20487604,97620.0,97615.0,0.1006426]
[1763099496115,0.00045571,97622.0,97619.0,0.2048771]
[1763099496476,0.00045571,97622.0,97618.0,0.20487919]
[1763099496709,0.00045571,97622.0,97620.0,0.20487515]
[1763099497610,0.00045571,97622.0,97616.0,0.20488341]
[1763099497822,0.00045571,97622.0,97615.0,0.1006426]
[1763099497973,0.00045571,97622.0,97620.0,0.2048751]
[1763099499493,0.00045571,97622.0,97616.0,0.20488444]
[1763099499697,0.20532803,97622.0,97615.0,0.1006426]
[1763099499921,0.20488039,97618.0,97615.0,0.1006426]
[1763099500176,0.20488163,97619.0,97615.0,0.1006426]
[1763099500380,0.00045571,97622.0,97615.0,0.30552842]
[1763099500590,0.00045571,97622.0,97617.0,0.20488234]
[1763099500793,0.00045571,97622.0,97621.0,0.20487395]
[1763099502629,0.00045571,97622.0,97615.0,0.1006426]
[1763099503098,0.00045571,97622.0,97620.0,0.20487564]
[1763099505113,0.00032707,97622.0,97619.0,0.20487664]
[1763099505331,0.00032707,97622.0,97621.0,0.20487395]
[1763099506708,0.00032707,97622.0,97619.0,0.20487664]
[1763099506909,0.00032707,97622.0,97615.0,0.1006426]
[1763099507149,0.00032707,97622.0,97618.0,0.20487997]
[1763099507296,0.00032707,97622.0,97620.0,0.2048755]
[1763099515086,0.00032707,97622.0,97618.0,0.20487997]
[1763099515294,0.00032707,97622.0,97615.0,0.1006426]
[1763099515868,0.00032707,97622.0,97619.0,0.20487814]
[1763099516042,0.00032707,97622.0,97620.0,0.20487493]
[1763099520071,0.00032707,97622.0,97621.0,0.20487395]
[1763099520267,0.00032707,97622.0,97615.0,0.1006426]
[1763099520433,0.00032707,97622.0,97620.0,0.20487425]
[1763099527257,0.00032707,97622.0,97614.0,0.20488713]
[1763099527258,0.26948604,97621.0,97600.0,0.0102459]
[1763099527463,0.26948604,97621.0,97613.0,0.1006426]
[1763099527464,0.2048902,97614.0,97613.0,0.1006426]
[1763099527708,0.20488588,97616.0,97613.0,0.1006426]
[1763099527915,0.0358,97614.0,97613.0,0.1006426]
[1763099528171,0.0358,97614.0,97600.0,0.0102459]
[1763099528379,0.204903,97608.0,97603.0,0.20491158]
[1763099528587,0.204903,97608.0,97601.0,0.20491401]
[1763099528939,0.20490535,97607.0,97601.0,0.20491401]
[1763099529157,0.06362,97602.0,97596.0,0.1006426]
[1763099529361,0.26853397,97602.0,97596.0,0.1006426]
[1763099529564,0.20491782,97601.0,97596.0,0.30556737]
[1763099529730,0.02782,97602.0,97598.0,0.20492188]
[1763099530078,0.02782,97602.0,97596.0,0.30556737]
[1763099530461,0.02782,97602.0,97597.0,0.20492433]
[1763099530875,0.20494332,97588.0,97579.0,0.20496207]
[1763099531122,0.20492853,97595.0,97583.0,0.20495316]
[1763099531289,0.02782,97591.0,97582.0,0.20495163]
[1763099531695,0.55769,97620.0,97602.0,0.20491383]
[1763099531902,0.20490987,97604.0,97593.0,0.20493134]
[1763099532126,0.20491173,97603.0,97602.0,0.00013699]
[1763099532480,0.02782,97606.0,97605.0,0.20490753]
[1763099533257,0.06362,97606.0,97602.0,0.00013699]
[1763099533439,0.06362,97606.0,97603.0,0.1006426]
[1763099534980,0.20490753,97605.0,97603.0,0.0704926]
[1763099535126,0.0358,97604.0,97602.0,0.00013699]
[1763099535324,0.24071173,97603.0,97602.0,0.00013699]
[1763099536266,0.0358,97603.0,97602.0,0.00013699]
[1763099536795,0.24071173,97603.0,97602.0,0.00013699]
[1763099537281,0.02782,97606.0,97579.0,0.323]
[1763099537282,0.0358,97598.0,97579.0,0.323]
[1763099537485,0.03584556,97598.0,97581.0,0.323]
[1763099537699,0.03584556,97598.0,97594.0,0.20492869]
[1763099538106,0.03584556,97598.0,97595.0,0.20492653]
[1763099538313,0.03584556,97598.0,97597.0,0.20492433]
[1763099538488,0.03584556,97598.0,97596.0,0.20492441]
[1763099538859,0.0358,97597.0,97595.0,0.20492823]
[1763099539055,0.0358,97597.0,97593.0,0.30557454]
[1763099539262,0.0358,97594.0,97580.0,0.010248]
[1763099539497,0.0358,97594.0,97584.0,0.1006426]
[1763099540079,0.20494083,97590.0,97584.0,0.1006426]
[1763099540281,0.20494398,97588.0,97584.0,0.1006426]
[1763099540760,0.20496274,97579.0,97564.0,0.20499364]
[1763099540953,0.26857132,97585.0,97564.0,0.20499364]
[1763099540954,0.23277132,97585.0,97578.0,0.1006426]
[1763099541418,0.02782,97585.0,97579.0,0.20496213]
[1763099541761,0.02782,97585.0,97583.0,0.20495178]
[1763099542070,0.02782,97591.0,97589.0,0.20494061]
[1763099543730,4.556e-05,97598.0,97597.0,0.20492433]
[1763099543932,4.556e-05,97598.0,97597.0,0.30556693]
[1763099544765,4.556e-05,97598.0,97597.0,0.62856693]
[1763099544952,4.556e-05,97598.0,97597.0,0.67198567]
[1763099548281,4.556e-05,97598.0,97597.0,0.34898567]
[1763099548766,4.556e-05,97598.0,97597.0,0.20492433]
[1763099549305,4.556e-05,97598.0,97596.0,0.30556752]
[1763099549839,4.556e-05,97598.0,97596.0,0.1006426]
[1763099550256,0.20496781,97598.0,97596.0,0.1006426]
[1763099550501,4.556e-05,97598.0,97596.0,0.1006426]
[1763099550734,4.556e-05,97598.0,97597.0,0.20492433]
[1763099551222,4.556e-05,97598.0,97586.0,0.20494562]
[1763099551223,0.20494372,97588.0,97579.0,0.20496057]
[1763099551441,0.20494372,97588.0,97587.0,0.1006426]
[1763099551637,0.20495163,97584.0,97583.0,0.1006426]
[1763099551836,0.02887,97587.0,97570.0,0.01024905]
[1763099552014,0.20496213,97579.0,97578.0,0.1006426]
[1763099552381,0.20496213,97579.0,97560.0,0.0102501]
[1763099552382,0.20496737,97577.0,97571.0,0.20497816]
[1763099553517,0.20496443,97578.0,97571.0,0.20497816]
[1763099553726,0.20496911,97576.0,97571.0,0.20497816]
[1763099554311,0.20496443,97578.0,97571.0,0.20497816]
[1763099554563,0.08159,97587.0,97574.0,0.20497086]
[1763099554894,0.08159,97587.0,97581.0,0.1006426]
[1763099555096,0.23381702,97587.0,97581.0,0.1006426]
[1763099555750,0.20495036,97585.0,97581.0,0.1006426]
[1763099555954,0.20492039,97599.0,97583.0,0.20495373]
[1763099556274,0.20492938,97595.0,97587.0,0.20494447]
[1763099556705,0.2049372,97591.0,97585.0,0.2049488]
[1763099556920,0.20494254,97589.0,97582.0,0.20495583]
[1763099557099,0.2049372,97591.0,97584.0,0.20495149]
[1763099557872,0.20494177,97589.0,97581.0,0.3056004]
[1763099558271,0.2049453,97588.0,97581.0,0.3056004]
[1763099558875,0.20494177,97589.0,97583.0,0.20495216]
[1763099559524,0.20494177,97589.0,97581.0,0.3056004]
[1763099559740,0.20494177,97589.0,97583.0,0.20495359]
[1763099559887,0.20494177,97589.0,97581.0,0.3056004]
[1763099559888,0.20494594,97587.0,97581.0,0.3056004]
[1763099560090,0.05272,97595.0,97581.0,0.1006426]
[1763099560364,0.20495386,97583.0,97581.0,0.1006426]
[1763099563217,0.20496633,97577.0,97576.0,0.1457]
[1763099563743,0.20497198,97575.0,97569.0,0.20498111]
[1763099563960,0.2049758,97573.0,97567.0,0.1457]
[1763099564162,0.20497303,97574.0,97567.0,0.1457]
[1763099564390,0.20496633,97577.0,97567.0,0.1457]
[1763099564589,0.02887,97578.0,97567.0,0.1457]
[1763099565046,0.02887,97578.0,97576.0,0.20496783]
[1763099565170,0.02887,97578.0,97572.0,0.20497628]
[1763099565518,0.20497098,97575.0,97568.0,0.20498516]
[1763099565943,0.20497098,97575.0,97569.0,0.20498125]
[1763099566532,0.20497098,97575.0,97567.0,0.1457]
[1763099568054,0.20497784,97572.0,97567.0,0.1457]
[1763099568265,0.20498111,97570.0,97567.0,0.1457]
[1763099568704,0.20497784,97572.0,97567.0,0.1457]
[1763099569345,0.204972,97575.0,97568.0,0.20498524]
[1763099569756,0.05272,97577.0,97560.0,0.0102501]
[1763099569757,0.20498944,97566.0,97565.0,0.1457]
[1763099570384,0.24046944,97566.0,97565.0,0.1457]
[1763099570612,0.20500205,97560.0,97559.0,0.1006426]
[1763099571023,0.20504758,97560.0,97559.0,0.1006426]
[1763099572303,0.03552553,97560.0,97541.0,0.323]
[1763099572519,0.03552553,97560.0,97540.0,0.1006426]
[1763099572520,0.03548,97554.0,97540.0,0.1006426]
[1763099572835,0.20501908,97552.0,97543.0,0.20503759]
[1763099573005,0.20502711,97549.0,97542.0,0.20503961]
[1763099573941,0.20502937,97547.0,97541.0,0.20504198]
[1763099574150,0.2050399,97542.0,97540.0,0.1006426]
[1763099574382,0.20503713,97544.0,97540.0,0.1006426]
[1763099574517,0.20502365,97550.0,97541.0,0.20504198]
[1763099574863,0.02887,97551.0,97540.0,0.1006426]
[1763099575013,0.23389159,97551.0,97543.0,0.20503777]
[1763099575222,0.20502537,97549.0,97543.0,0.20503777]
[1763099575620,0.02887,97559.0,97540.0,0.1006426]
[1763099576017,0.02887,97559.0,97555.0,0.20501081]
[1763099577178,0.03548,97556.0,97555.0,0.20501081]
[1763099578337,0.03548,97556.0,97520.0,0.0106543]
[1763099578550,0.03548,97553.0,97550.0,0.20502158]
[1763099579431,0.02887,97559.0,97557.0,0.20500806]
[1763099579632,0.08159,97559.0,97554.0,0.20501376]
[1763099579852,0.02887,97559.0,97554.0,0.20501376]
[1763099579993,0.03548,97555.0,97554.0,0.20501376]
[1763099580196,0.02887,97559.0,97554.0,0.20501376]
[1763099580405,0.03512,97555.0,97554.0,0.20501376]
[1763099581255,0.02887,97559.0,97558.0,0.20500625]
[1763099581444,4.553e-05,97560.0,97558.0,0.20500625]
[1763099581645,4.553e-05,97560.0,97559.0,0.1006426]
[1763099581859,4.553e-05,97560.0,97549.0,0.20502488]
[1763099582061,0.06281,97559.0,97553.0,0.20501584]
[1763099582412,0.06281,97559.0,97552.0,0.20501846]
[1763099582582,0.20501045,97556.0,97555.0,0.1006426]
[1763099582783,0.24013045,97556.0,97555.0,0.1006426]
[1763099583032,0.03512,97556.0,97555.0,0.1006426]
[1763099583431,0.24013045,97556.0,97555.0,0.1006426]
[1763099583734,0.03512,97556.0,97540.0,0.1006426]
[1763099583934,0.03512,97556.0,97540.0,0.30568458]
[1763099584064,0.03512,97556.0,97540.0,0.1006426]
[1763099584267,0.03512,97556.0,97553.0,0.20501644]
[1763099584564,0.23269482,97559.0,97553.0,0.20501644]
[1763099584967,0.23269482,97559.0,97554.0,0.20501259]
[1763099585753,4.553e-05,97560.0,97558.0,0.20500625]
[1763099587968,0.02569,97559.0,97558.0,0.20500625]
[1763099588187,0.26474415,97559.0,97557.0,0.1006426]
[1763099588422,0.26474415,97559.0,97540.0,0.64072518]
[1763099588423,0.20500835,97557.0,97541.0,0.323]
[1763099588574,0.03405,97558.0,97555.0,0.1006426]
[1763099588767,0.23906045,97556.0,97546.0,0.20503029]
[1763099588973,0.03405,97556.0,97543.0,0.20503777]
[1763099589175,0.03405,97556.0,97540.0,0.1006426]
[1763099589399,0.20502397,97550.0,97543.0,0.20503716]
[1763099589579,0.20502397,97550.0,97542.0,0.20503781]
[1763099589778,0.20501124,97556.0,97548.0,0.20502726]
[1763099590009,0.23069593,97559.0,97548.0,0.20502613]
[1763099590191,0.02569,97559.0,97552.0,0.20501862]
[1763099590371,0.02569,97559.0,97553.0,0.20501676]
[1763099590604,0.02569,97559.0,97541.0,0.1457]
[1763099590804,0.23069565,97559.0,97541.0,0.1457]
[1763099591137,0.20501084,97556.0,97544.0,0.20503567]
[1763099591366,0.20501084,97556.0,97550.0,0.20502151]
[1763099592095,0.20501467,97554.0,97547.0,0.20502786]
[1763099592293,0.20501886,97553.0,97545.0,0.20503357]
[1763099592493,0.20501886,97553.0,97541.0,0.1457]
[1763099592494,0.20502108,97551.0,97541.0,0.1457]
[1763099592693,0.20502108,97551.0,97541.0,0.35074118]
[1763099592947,0.20503137,97547.0,97541.0,0.35074118]
[1763099593173,0.20503137,97547.0,97542.0,0.1457]
[1763099593568,0.02569,97549.0,97548.0,0.20502726]
[1763099593780,0.20502926,97548.0,97542.0,0.1457]
[1763099593979,0.02569,97549.0,97542.0,0.1457]
[1763099594180,0.02569,97559.0,97546.0,0.20502931]
[1763099594356,0.02569,97559.0,97542.0,0.1457]
[1763099594357,0.2306946,97559.0,97552.0,0.20501809]
[1763099594598,0.23069625,97559.0,97548.0,0.20502726]
[1763099595006,0.02569,97563.0,97555.0,0.1006426]
[1763099595199,0.2049979,97562.0,97555.0,0.1006426]
[1763099595377,0.02569,97563.0,97556.0,0.20501045]
[1763099595578,0.02569,97563.0,97558.0,0.20500575]
[1763099595983,0.20498097,97571.0,97558.0,0.20500575]
[1763099595984,0.20498492,97569.0,97558.0,0.20500575]
[1763099596195,0.20498779,97567.0,97558.0,0.20500575]
[1763099597578,0.20499187,97565.0,97558.0,0.20500575]
[1763099597805,0.20498346,97569.0,97558.0,0.20500575]
[1763099598007,0.02194244,97568.0,97558.0,0.20500575]
[1763099598418,0.20498993,97566.0,97558.0,0.20500575]
[1763099598664,0.20498097,97571.0,97558.0,0.20500575]
[1763099598819,0.02195215,97570.0,97558.0,0.20500575]
[1763099599189,0.20500602,97559.0,97555.0,0.1006426]
[1763099599830,4.553e-05,97560.0,97555.0,0.1006426]
[1763099600006,0.20501045,97556.0,97555.0,0.1006426]
[1763099600973,0.20501255,97555.0,97541.0,0.323]
[1763099601332,0.20501043,97557.0,97548.0,0.20502632]
[1763099601530,0.20501043,97557.0,97556.0,0.1006426]
[1763099601733,4.553e-05,97560.0,97557.0,0.20500835]
[1763099601900,0.20500814,97558.0,97552.0,0.20501695]
[1763099602098,0.20500814,97558.0,97556.0,0.1006426]
[1763099603247,4.553e-05,97560.0,97556.0,0.1006426]
[1763099603985,4.553e-05,97560.0,97559.0,0.20500415]
[1763099605544,4.553e-05,97560.0,97559.0,0.35070415]
[1763099606740,4.553e-05,97560.0,97559.0,0.67370415]
[1763099607343,4.553e-05,97560.0,97559.0,0.71712289]
[1763099609239,4.553e-05,97560.0,97552.0,0.20501694]
[1763099609240,0.01025115,97550.0,97520.0,0.0004]
[1763099609542,0.05974,97521.0,97520.0,0.0004]
[1763099609744,0.225618,97521.0,97520.0,0.0004]
[1763099609942,0.62934806,97511.0,97510.0,0.0004]
[1763099610167,0.68908806,97511.0,97510.0,0.0004]
[1763099610340,0.164031,97511.0,97510.0,0.0004]
[1763099610497,0.664031,97511.0,97510.0,0.0004]
[1763099610703,0.66853149,97511.0,97510.0,0.0004]
[1763099610904,0.55978549,97511.0,97510.0,0.0004]
[1763099611747,0.20459549,97511.0,97510.0,0.0004]
[1763099612248,0.17054549,97511.0,97510.0,0.0004]
[1763099612423,0.02738549,97511.0,97510.0,0.0004]
[1763099612948,0.06276549,97511.0,97510.0,0.0004]
[1763099615358,0.02738549,97511.0,97510.0,0.0004]
[1763099615759,0.06276549,97511.0,97510.0,0.0004]
[1763099616278,0.02738549,97511.0,97510.0,0.0004]
[1763099616785,4.549e-05,97511.0,97510.0,0.0004]
[1763099619848,0.24053055,97511.0,97510.0,0.0004]
[1763099622361,4.549e-05,97511.0,97510.0,0.0004]
[1763099629018,0.03542549,97511.0,97510.0,0.0004]
[1763099629428,4.549e-05,97511.0,97510.0,0.0004]
[1763099631995,0.03542549,97511.0,97510.0,0.0004]
[1763099633501,4.549e-05,97511.0,97510.0,0.0004]
[1763099633704,4.549e-05,97511.0,97510.0,0.1010426]
[1763099634685,0.03542549,97511.0,97510.0,0.0004]
[1763099634919,4.549e-05,97511.0,97510.0,0.0004]
[1763099637038,4.549e-05,97511.0,97510.0,0.1010426]
[1763099638531,0.00955843,97511.0,97510.0,0.1010426]
[1763099641061,0.00955843,97511.0,97510.0,0.30614976]
[1763099644662,0.0286517,97511.0,97510.0,0.30614976]
[1763099644873,0.0286517,97511.0,97510.0,0.0004]
[1763099645095,0.0286517,97511.0,97510.0,0.20550716]
[1763099645538,0.0286517,97511.0,97510.0,0.0004]
[1763099646325,0.0617417,97511.0,97510.0,0.0004]
[1763099646523,0.0836629,97511.0,97510.0,0.0004]
[1763099646929,0.28876796,97511.0,97510.0,0.0004]
[1763099647344,0.0836629,97511.0,97510.0,0.0004]
[1763099647942,0.11110949,97511.0,97510.0,0.0004]
[1763099648362,0.0505729,97511.0,97510.0,0.20550716]
[1763099649798,0.0505729,97511.0,97510.0,0.0004]
[1763099650984,0.0506308,97511.0,97510.0,0.0004]
[1763099651167,0.0287096,97511.0,97510.0,0.0004]
[1763099651507,0.0506308,97511.0,97510.0,0.0004]
[1763099655041,0.0287096,97511.0,97510.0,0.0004]
[1763099656385,0.00960019,97511.0,97510.0,0.0004]
[1763099657026,0.02871661,97511.0,97510.0,0.0004]
[1763099657131,0.00960019,97511.0,97510.0,0.0004]
[1763099658407,0.06845019,97511.0,97510.0,0.0004]
[1763099658664,0.10948986,97511.0,97510.0,0.0004]
[1763099659408,0.02957051,97511.0,97510.0,0.20550716]
[1763099659594,0.02750369,97527.0,97525.0,0.20507562]
[1763099659796,4.564e-05,97527.0,97526.0,0.323]
[1763099663186,4.564e-05,97527.0,97526.0,0.47564398]
[1763099663439,0.02413,97578.0,97550.0,0.02025115]
[1763099663612,0.02413,97565.0,97562.0,0.20499682]
[1763099663793,0.02413,97565.0,97547.0,0.20502937]
[1763099664004,0.03472,97562.0,97545.0,0.1006426]
[1763099664367,0.03472,97562.0,97546.0,0.20503147]
[1763099664550,0.05074,97561.0,97549.0,0.20502506]
[1763099664724,0.20500205,97560.0,97549.0,0.20502506]
[1763099665058,0.20500205,97560.0,97545.0,0.1006426]
[1763099665059,0.02413,97565.0,97545.0,0.1006426]
[1763099665261,0.02413,97572.0,97569.0,0.20498276]
[1763099665480,4.567e-05,97578.0,97575.0,0.20497031]
[1763099665693,4.567e-05,97578.0,97577.0,0.20496633]
[1763099667045,0.03476567,97578.0,97537.0,0.1006426]
[1763099667257,0.20503101,97547.0,97537.0,0.1006426]
[1763099667450,0.20502406,97550.0,97539.0,0.20504543]
[1763099667655,1.134717,97566.0,97537.0,0.1006426]
[1763099667656,0.20503218,97546.0,97537.0,0.1006426]
[1763099668052,0.20502726,97548.0,97537.0,0.1006426]
[1763099668255,0.02413,97549.0,97537.0,0.1006426]
[1763099668485,0.02417564,97549.0,97542.0,0.2050395]
[1763099668682,0.02417564,97549.0,97539.0,0.20504618]
[1763099668902,0.20503373,97545.0,97537.0,0.1006426]
[1763099669103,0.20503797,97543.0,97537.0,0.1006426]
[1763099669448,0.02417564,97549.0,97533.0,0.1006426]
[1763099669654,0.20504236,97541.0,97533.0,0.1006426]
[1763099669902,0.2050472,97539.0,97533.0,0.1006426]
[1763099670421,0.20503869,97543.0,97533.0,0.1006426]
[1763099670670,0.20503869,97543.0,97533.0,0.30570135]
[1763099671307,0.02417564,97549.0,97533.0,0.30569929]
[1763099671457,4.564e-05,97549.0,97533.0,0.1006426]
[1763099671653,4.564e-05,97549.0,97548.0,0.1006426]
[1763099672017,4.564e-05,97549.0,97539.0,0.20504582]
[1763099672464,4.564e-05,97549.0,97548.0,0.1006426]
[1763099672674,4.564e-05,97549.0,97548.0,0.30566986]
[1763099673271,4.564e-05,97549.0,97548.0,0.62866986]
[1763099676132,4.564e-05,97549.0,97548.0,0.6720886]
[1763099676530,4.564e-05,97549.0,97548.0,0.70281327]
[1763099677858,4.564e-05,97549.0,97548.0,0.6720886]
[1763099678822,4.564e-05,97549.0,97548.0,0.62866986]
[1763099680182,4.564e-05,97549.0,97548.0,0.1006426]
[1763099685165,4.564e-05,97549.0,97540.0,0.02]
[1763099685387,4.564e-05,97549.0,97534.0,0.1006426]
[1763099685761,4.564e-05,97549.0,97542.0,0.20503782]
[1763099686144,4.564e-05,97549.0,97540.0,0.20504273]
[1763099686380,4.564e-05,97549.0,97541.0,0.20504198]
[1763099687761,4.564e-05,97549.0,97543.0,0.20503765]
[1763099687965,4.564e-05,97549.0,97548.0,0.20502726]
[1763099689448,4.564e-05,97549.0,97547.0,0.20502834]
[1763099693203,4.564e-05,97549.0,97545.0,0.20503333]
[1763099693406,4.564e-05,97549.0,97547.0,0.20502768]
[1763099697637,0.02750369,97577.0,97576.0,0.20496843]
[1763099698016,0.02750369,97577.0,97576.0,0.35062279]
[1763099698017,4.565e-05,97577.0,97576.0,0.35062279]
[1763099698890,4.565e-05,97577.0,97576.0,0.20496843]
[1763099700391,4.565e-05,97577.0,97576.0,0.24838717]
[1763099700591,4.565e-05,97577.0,97576.0,0.27911184]
[1763099700816,4.565e-05,97577.0,97576.0,0.24838717]
[1763099701037,4.565e-05,97577.0,97576.0,0.60211184]
[1763099703829,4.565e-05,97577.0,97576.0,0.7477662]
[1763099704260,0.02204757,97617.0,97616.0,0.1006426]
[1763099704460,4.565e-05,97617.0,97616.0,0.30552494]
[1763099704677,4.565e-05,97617.0,97616.0,0.37966835]